[Event "January 2 Late 2024"]
[Site "https://www.chess.com"]
[Date "2024.01.02"]
[Round "9"]
[White "Esmeraldas Huachi, Anderson"]
[Black "Vlassov, Nikolai"]
[Result "1-0"]
[Board "102"]
[TimeControl "180+1"]
[WhiteFideId "3616363"]
[BlackFideId "4103360"]
[WhiteElo "2398"]
[BlackElo "2622"]
[WhiteTeam "ECU"]
[BlackTeam "FID"]
[WhiteClock "0:00:30"]
[BlackClock "0:00:06"]

1. d4 {[%clk 0:03:00]}  Nf6 {[%clk 0:02:59]} 2. c4 {[%clk 0:03:00]}  Nc6 {[%clk 0:02:56]} 3. Nc3 {[%clk 0:02:58]}  e5 {[%clk 0:02:55]} 4. d5 {[%clk 0:02:54]}  Ne7 {[%clk 0:02:54]} 5. e4 {[%clk 0:02:55]}  Ng6 {[%clk 0:02:54]} 6. Be2 {[%clk 0:02:47]}  Bc5 {[%clk 0:02:54]} 7. Be3 {[%clk 0:02:45]}  Bxe3 {[%clk 0:02:45]} 8. fxe3 {[%clk 0:02:46]}  d6 {[%clk 0:02:44]} 9. Nf3 {[%clk 0:02:45]}  O-O {[%clk 0:02:43]} 10. O-O {[%clk 0:02:45]}  c6 {[%clk 0:02:43]} 11. Qd2 {[%clk 0:02:41]}  a5 {[%clk 0:02:42]} 12. a3 {[%clk 0:02:40]}  cxd5 {[%clk 0:02:38]} 13. exd5 {[%clk 0:02:40]}  Qb6 {[%clk 0:02:29]} 14. h3 {[%clk 0:02:38]}  a4 {[%clk 0:02:22]} 15. Kh2 {[%clk 0:02:29]}  Nd7 {[%clk 0:02:21]} 16. Bd1 {[%clk 0:02:26]}  Nc5 {[%clk 0:02:20]} 17. Nb5 {[%clk 0:02:24]}  Bd7 {[%clk 0:02:18]} 18. Nc3 {[%clk 0:02:20]}  f5 {[%clk 0:02:18]} 19. Rb1 {[%clk 0:02:15]}  Rf6 {[%clk 0:02:17]} 20. Ne1 {[%clk 0:02:11]}  Raf8 {[%clk 0:02:16]} 21. Nd3 {[%clk 0:02:11]}  f4 {[%clk 0:02:06]} 22. exf4 {[%clk 0:02:04]}  Nxd3 {[%clk 0:01:57]} 23. Qxd3 {[%clk 0:01:58]}  Nxf4 {[%clk 0:01:56]} 24. Qd2 {[%clk 0:01:57]}  Bf5 {[%clk 0:01:51]} 25. Bc2 {[%clk 0:01:54]}  Rg6 {[%clk 0:01:38]} 26. Bxf5 {[%clk 0:01:47]}  Rxf5 {[%clk 0:01:34]} 27. g3 {[%clk 0:01:37]}  Rxg3 {[%clk 0:01:12]} 28. Kxg3 {[%clk 0:01:35]}  Rg5+ {[%clk 0:01:10]} 29. Kh2 {[%clk 0:01:23]}  Rg2+ {[%clk 0:01:09]} 30. Qxg2 {[%clk 0:01:24]}  Nxg2 {[%clk 0:01:09]} 31. Kxg2 {[%clk 0:01:25]}  Qd4 {[%clk 0:01:04]} 32. Rf2 {[%clk 0:01:19]}  Qxc4 {[%clk 0:01:04]} 33. Rbf1 {[%clk 0:01:17]}  h6 {[%clk 0:01:04]} 34. Rf8+ {[%clk 0:01:13]}  Kh7 {[%clk 0:01:03]} 35. R8f7 {[%clk 0:01:14]}  b5 {[%clk 0:01:02]} 36. Rd7 {[%clk 0:01:14]}  b4 {[%clk 0:00:57]} 37. axb4 {[%clk 0:01:10]}  Qxb4 {[%clk 0:00:57]} 38. Rff7 {[%clk 0:00:56]}  Qxb2+ {[%clk 0:00:56]} 39. Kf1 {[%clk 0:00:55]}  Kg6 {[%clk 0:00:41]} 40. Rxg7+ {[%clk 0:00:52]}  Kh5 {[%clk 0:00:41]} 41. Ne2 {[%clk 0:00:47]}  a3 {[%clk 0:00:32]} 42. Rg4 {[%clk 0:00:44]}  Qb1+ {[%clk 0:00:09]} 43. Kg2 {[%clk 0:00:31]}  Qe4+ {[%clk 0:00:06]} 44. Rxe4 {[%clk 0:00:30]} 1-0

[Event "January 2 Late 2024"]
[Site "https://www.chess.com"]
[Date "2024.01.02"]
[Round "9"]
[White "Bold, Andre"]
[Black "Mazzilli, Piero"]
[Result "1-0"]
[Board "105"]
[TimeControl "180+1"]
[WhiteFideId "16208471"]
[BlackFideId "807087"]
[WhiteElo "2498"]
[BlackElo "2338"]
[WhiteTeam "GER"]
[BlackTeam "ITA"]
[WhiteClock "0:01:14"]
[BlackClock "0:00:04"]

1. d4 {[%clk 0:03:00]}  d5 {[%clk 0:03:00]} 2. Nf3 {[%clk 0:03:01]}  c6 {[%clk 0:03:00]} 3. c3 {[%clk 0:03:01]}  Nf6 {[%clk 0:03:00]} 4. Bf4 {[%clk 0:03:01]}  Bf5 {[%clk 0:03:00]} 5. e3 {[%clk 0:03:01]}  e6 {[%clk 0:03:00]} 6. Bd3 {[%clk 0:03:02]}  Bg6 {[%clk 0:03:00]} 7. O-O {[%clk 0:03:01]}  Bd6 {[%clk 0:03:00]} 8. Bxd6 {[%clk 0:03:02]}  Qxd6 {[%clk 0:03:00]} 9. Ne5 {[%clk 0:03:01]}  O-O {[%clk 0:02:58]} 10. f4 {[%clk 0:03:00]}  Bxd3 {[%clk 0:02:55]} 11. Qxd3 {[%clk 0:03:00]}  Ne4 {[%clk 0:02:56]} 12. Nd2 {[%clk 0:03:00]}  f6 {[%clk 0:02:53]} 13. Nxe4 {[%clk 0:02:37]}  dxe4 {[%clk 0:02:47]} 14. Nc4 {[%clk 0:02:37]}  Qxf4 {[%clk 0:02:10]} 15. exf4 {[%clk 0:02:32]}  exd3 {[%clk 0:02:10]} 16. Rad1 {[%clk 0:02:32]}  Nd7 {[%clk 0:02:08]} 17. Rxd3 {[%clk 0:02:32]}  Rfd8 {[%clk 0:01:47]} 18. Re1 {[%clk 0:02:30]}  Nf8 {[%clk 0:01:38]} 19. Na5 {[%clk 0:02:22]}  Rd7 {[%clk 0:01:35]} 20. b4 {[%clk 0:02:22]}  Rc8 {[%clk 0:01:33]} 21. Rde3 {[%clk 0:02:21]}  b6 {[%clk 0:01:30]} 22. Nb3 {[%clk 0:02:21]}  Ra8 {[%clk 0:01:12]} 23. Kf2 {[%clk 0:02:19]}  Kf7 {[%clk 0:01:05]} 24. g4 {[%clk 0:02:18]}  g6 {[%clk 0:01:05]} 25. Kf3 {[%clk 0:02:17]}  Rd5 {[%clk 0:00:53]} 26. a4 {[%clk 0:02:12]}  a5 {[%clk 0:00:45]} 27. bxa5 {[%clk 0:02:11]}  bxa5 {[%clk 0:00:44]} 28. Nc5 {[%clk 0:02:11]}  Rd6 {[%clk 0:00:35]} 29. Rb1 {[%clk 0:02:08]}  Ra7 {[%clk 0:00:25]} 30. Rb8 {[%clk 0:02:03]}  Nd7 {[%clk 0:00:22]} 31. Rb7 {[%clk 0:01:36]}  Rxb7 {[%clk 0:00:12]} 32. Nxb7 {[%clk 0:01:36]}  Rd5 {[%clk 0:00:12]} 33. Nd8+ {[%clk 0:01:36]}  Ke7 {[%clk 0:00:11]} 34. Nxe6 {[%clk 0:01:31]}  Ne5+ {[%clk 0:00:10]} 35. fxe5 {[%clk 0:01:26]}  Kxe6 {[%clk 0:00:11]} 36. exf6+ {[%clk 0:01:23]}  Kxf6 {[%clk 0:00:12]} 37. Ke4 {[%clk 0:01:22]}  Rg5 {[%clk 0:00:12]} 38. h3 {[%clk 0:01:21]}  h5 {[%clk 0:00:12]} 39. Kf4 {[%clk 0:01:20]}  hxg4 {[%clk 0:00:11]} 40. hxg4 {[%clk 0:01:19]}  Rd5 {[%clk 0:00:11]} 41. Re8 {[%clk 0:01:17]}  c5 {[%clk 0:00:11]} 42. Re5 {[%clk 0:01:13]}  Rxe5 {[%clk 0:00:09]} 43. dxe5+ {[%clk 0:01:14]}  Ke6 {[%clk 0:00:09]} 44. Ke4 {[%clk 0:01:14]}  g5 {[%clk 0:00:04]} 45. c4 {[%clk 0:01:14]} 1-0

[Event "January 2 Late 2024"]
[Site "https://www.chess.com"]
[Date "2024.01.02"]
[Round "9"]
[White "Gerbelli Neto, Eduardo"]
[Black "Berezin, Viktor"]
[Result "1-0"]
[Board "106"]
[TimeControl "180+1"]
[WhiteFideId "2103281"]
[BlackFideId "14107872"]
[WhiteElo "2364"]
[BlackElo "2497"]
[WhiteTeam "BRA"]
[BlackTeam "UKR"]
[WhiteClock "0:00:13"]
[BlackClock "0:00:00"]

1. e4 {[%clk 0:03:00]}  c6 {[%clk 0:02:57]} 2. d4 {[%clk 0:03:00]}  d5 {[%clk 0:02:55]} 3. exd5 {[%clk 0:03:01]}  cxd5 {[%clk 0:02:54]} 4. c4 {[%clk 0:03:01]}  Nc6 {[%clk 0:02:50]} 5. Nc3 {[%clk 0:03:02]}  Nf6 {[%clk 0:02:49]} 6. Nf3 {[%clk 0:03:03]}  Bg4 {[%clk 0:02:46]} 7. cxd5 {[%clk 0:03:03]}  Nxd5 {[%clk 0:02:43]} 8. Qb3 {[%clk 0:03:04]}  Bxf3 {[%clk 0:02:42]} 9. gxf3 {[%clk 0:03:05]}  Nb6 {[%clk 0:02:43]} 10. d5 {[%clk 0:03:05]}  Nd4 {[%clk 0:02:42]} 11. Bb5+ {[%clk 0:03:05]}  Nxb5 {[%clk 0:02:39]} 12. Nxb5 {[%clk 0:03:05]}  a6 {[%clk 0:02:36]} 13. Nc3 {[%clk 0:03:04]}  g6 {[%clk 0:02:33]} 14. Be3 {[%clk 0:03:04]}  Nd7 {[%clk 0:02:31]} 15. Bd4 {[%clk 0:03:04]}  Rg8 {[%clk 0:02:26]} 16. Qxb7 {[%clk 0:02:52]}  Rb8 {[%clk 0:02:23]} 17. Qxa6 {[%clk 0:02:51]}  Bh6 {[%clk 0:02:11]} 18. O-O {[%clk 0:02:47]}  Bf4 {[%clk 0:01:55]} 19. Rfe1 {[%clk 0:02:23]}  Kf8 {[%clk 0:01:51]} 20. Qe2 {[%clk 0:02:13]}  g5 {[%clk 0:01:49]} 21. h3 {[%clk 0:02:12]}  h5 {[%clk 0:01:48]} 22. Rad1 {[%clk 0:01:56]}  g4 {[%clk 0:01:44]} 23. fxg4 {[%clk 0:01:55]}  hxg4 {[%clk 0:01:44]} 24. h4 {[%clk 0:01:22]}  g3 {[%clk 0:01:23]} 25. Qh5 {[%clk 0:01:07]}  gxf2+ {[%clk 0:01:16]} 26. Kxf2 {[%clk 0:01:07]}  Qc7 {[%clk 0:00:55]} 27. Ne4 {[%clk 0:00:31]}  Bg3+ {[%clk 0:00:27]} 28. Kf1 {[%clk 0:00:21]}  Qf4+ {[%clk 0:00:21]} 29. Nf2 {[%clk 0:00:21]}  Bxf2 {[%clk 0:00:13]} 30. Bxf2 {[%clk 0:00:21]}  Rxb2 {[%clk 0:00:13]} 31. Re2 {[%clk 0:00:20]}  Nf6 {[%clk 0:00:10]} 32. Qe5 {[%clk 0:00:18]}  Qxe5 {[%clk 0:00:03]} 33. Rxe5 {[%clk 0:00:17]}  Rxa2 {[%clk 0:00:03]} 34. d6 {[%clk 0:00:17]}  exd6 {[%clk 0:00:03]} 35. Rxd6 {[%clk 0:00:17]}  Ng4 {[%clk 0:00:03]} 36. Rd8+ {[%clk 0:00:16]}  Kg7 {[%clk 0:00:03]} 37. Rg5+ {[%clk 0:00:17]}  Kf6 {[%clk 0:00:04]} 38. Rgxg8 {[%clk 0:00:16]}  Nxf2 {[%clk 0:00:04]} 39. Rg2 {[%clk 0:00:14]}  Ke7 {[%clk 0:00:02]} 40. Rb8 {[%clk 0:00:13]}  Ra1+ {[%clk 0:00:00]} 41. Kxf2 {[%clk 0:00:13]} 1-0

[Event "January 2 Late 2024"]
[Site "https://www.chess.com"]
[Date "2024.01.02"]
[Round "9"]
[White "Stojanovski, Sandi"]
[Black "Ardila, Oscar Humberto"]
[Result "1-0"]
[Board "107"]
[TimeControl "180+1"]
[WhiteFideId "1403249"]
[BlackFideId "4404742"]
[WhiteElo "2489"]
[BlackElo "2335"]
[WhiteTeam "DEN"]
[BlackTeam "COL"]
[WhiteClock "0:00:13"]
[BlackClock "0:00:22"]

1. c4 {[%clk 0:03:00]}  Nf6 {[%clk 0:02:59]} 2. Nc3 {[%clk 0:02:58]}  d6 {[%clk 0:02:59]} 3. e4 {[%clk 0:02:57]}  Nbd7 {[%clk 0:03:00]} 4. d4 {[%clk 0:02:55]}  e5 {[%clk 0:03:00]} 5. Nf3 {[%clk 0:02:55]}  Be7 {[%clk 0:02:59]} 6. Be2 {[%clk 0:02:55]}  O-O {[%clk 0:02:59]} 7. O-O {[%clk 0:02:55]}  c6 {[%clk 0:02:59]} 8. Re1 {[%clk 0:02:55]}  Qc7 {[%clk 0:02:59]} 9. Bg5 {[%clk 0:02:49]}  h6 {[%clk 0:02:59]} 10. Be3 {[%clk 0:02:49]}  Re8 {[%clk 0:02:59]} 11. h3 {[%clk 0:02:48]}  Nf8 {[%clk 0:02:59]} 12. d5 {[%clk 0:02:45]}  cxd5 {[%clk 0:02:58]} 13. cxd5 {[%clk 0:02:44]}  Bd7 {[%clk 0:02:44]} 14. Rc1 {[%clk 0:02:40]}  Qb8 {[%clk 0:02:41]} 15. a4 {[%clk 0:02:30]}  Rc8 {[%clk 0:02:40]} 16. Nd2 {[%clk 0:02:25]}  Ng6 {[%clk 0:02:35]} 17. Bf1 {[%clk 0:02:21]}  Nf4 {[%clk 0:02:33]} 18. Kh2 {[%clk 0:02:18]}  Rc7 {[%clk 0:02:21]} 19. g3 {[%clk 0:02:17]}  Ng6 {[%clk 0:02:21]} 20. a5 {[%clk 0:02:05]}  Bd8 {[%clk 0:02:16]} 21. b4 {[%clk 0:01:53]}  Qc8 {[%clk 0:02:14]} 22. Nb5 {[%clk 0:01:21]}  Bxb5 {[%clk 0:02:03]} 23. Bxb5 {[%clk 0:01:17]}  a6 {[%clk 0:02:02]} 24. Bd3 {[%clk 0:01:12]}  Ne7 {[%clk 0:01:54]} 25. Rxc7 {[%clk 0:00:32]}  Bxc7 {[%clk 0:01:51]} 26. Nc4 {[%clk 0:00:32]}  Qd7 {[%clk 0:01:50]} 27. Qf3 {[%clk 0:00:24]}  Ne8 {[%clk 0:01:42]} 28. Rc1 {[%clk 0:00:21]}  Rc8 {[%clk 0:01:41]} 29. Qd1 {[%clk 0:00:20]}  Bd8 {[%clk 0:01:26]} 30. Nb6 {[%clk 0:00:20]}  Bxb6 {[%clk 0:01:25]} 31. Bxb6 {[%clk 0:00:18]}  g6 {[%clk 0:01:15]} 32. Rc2 {[%clk 0:00:18]}  Kg7 {[%clk 0:01:07]} 33. Qc1 {[%clk 0:00:17]}  f5 {[%clk 0:01:05]} 34. Rxc8 {[%clk 0:00:15]}  Nxc8 {[%clk 0:01:05]} 35. Be3 {[%clk 0:00:15]}  h5 {[%clk 0:01:00]} 36. Bh6+ {[%clk 0:00:11]}  Kh7 {[%clk 0:00:59]} 37. Bg5 {[%clk 0:00:11]}  Ng7 {[%clk 0:00:53]} 38. Qc2 {[%clk 0:00:10]}  Ne7 {[%clk 0:00:51]} 39. Bf6 {[%clk 0:00:08]}  Ng8 {[%clk 0:00:50]} 40. Bg5 {[%clk 0:00:08]}  Nh6 {[%clk 0:00:42]} 41. Be3 {[%clk 0:00:08]}  Ng8 {[%clk 0:00:30]} 42. Bb6 {[%clk 0:00:07]}  Nf6 {[%clk 0:00:22]} 43. exf5 {[%clk 0:00:06]}  gxf5 {[%clk 0:00:22]} 44. Qc7 {[%clk 0:00:07]}  Qa4 {[%clk 0:00:21]} 45. Qxd6 {[%clk 0:00:06]}  Nfe8 {[%clk 0:00:17]} 46. Qxe5 {[%clk 0:00:05]}  Qxb4 {[%clk 0:00:18]} 47. Bxf5+ {[%clk 0:00:05]}  Kg8 {[%clk 0:00:17]} 48. Bd4 {[%clk 0:00:05]}  Qf8 {[%clk 0:00:15]} 49. Be6+ {[%clk 0:00:05]}  Kh7 {[%clk 0:00:15]} 50. Qe4+ {[%clk 0:00:05]}  Kh8 {[%clk 0:00:15]} 51. f4 {[%clk 0:00:05]}  Nf6 {[%clk 0:00:13]} 52. Qe5 {[%clk 0:00:05]}  Nfe8 {[%clk 0:00:12]} 53. Bd7 {[%clk 0:00:05]}  Qf7 {[%clk 0:00:10]} 54. Bxe8 {[%clk 0:00:04]}  Kh7 {[%clk 0:00:08]} 55. Qxg7+ {[%clk 0:00:05]}  Qxg7 {[%clk 0:00:08]} 56. Bxg7 {[%clk 0:00:06]}  Kxg7 {[%clk 0:00:09]} 57. d6 {[%clk 0:00:07]}  Kf6 {[%clk 0:00:10]} 58. d7 {[%clk 0:00:07]}  Ke7 {[%clk 0:00:10]} 59. g4 {[%clk 0:00:08]}  hxg4 {[%clk 0:00:09]} 60. hxg4 {[%clk 0:00:08]}  b5 {[%clk 0:00:10]} 61. axb6 {[%clk 0:00:07]}  a5 {[%clk 0:00:10]} 62. b7 {[%clk 0:00:07]}  a4 {[%clk 0:00:11]} 63. b8=Q {[%clk 0:00:08]}  a3 {[%clk 0:00:12]} 64. Qb3 {[%clk 0:00:08]}  a2 {[%clk 0:00:13]} 65. Qxa2 {[%clk 0:00:08]}  Kd8 {[%clk 0:00:13]} 66. Qf2 {[%clk 0:00:09]}  Ke7 {[%clk 0:00:14]} 67. g5 {[%clk 0:00:10]}  Kd8 {[%clk 0:00:15]} 68. Kg3 {[%clk 0:00:10]}  Ke7 {[%clk 0:00:15]} 69. Kg4 {[%clk 0:00:11]}  Kd8 {[%clk 0:00:16]} 70. f5 {[%clk 0:00:12]}  Ke7 {[%clk 0:00:17]} 71. g6 {[%clk 0:00:12]}  Kd8 {[%clk 0:00:18]} 72. Kg5 {[%clk 0:00:13]}  Ke7 {[%clk 0:00:19]} 73. g7 {[%clk 0:00:13]}  Kd8 {[%clk 0:00:20]} 74. g8=Q {[%clk 0:00:14]}  Ke7 {[%clk 0:00:21]} 75. Qe6+ {[%clk 0:00:14]}  Kd8 {[%clk 0:00:22]} 76. Qfe2 {[%clk 0:00:13]}  Kc7 {[%clk 0:00:21]} 77. d8=Q+ {[%clk 0:00:13]}  Kxd8 {[%clk 0:00:22]} 78. Qd7# {[%clk 0:00:13]} 1-0

[Event "January 2 Late 2024"]
[Site "https://www.chess.com"]
[Date "2024.01.02"]
[Round "9"]
[White "Reprintsev, Alexander"]
[Black "Biernacki, Mark"]
[Result "1/2-1/2"]
[Board "108"]
[TimeControl "180+1"]
[WhiteFideId "14100541"]
[BlackFideId "2082322"]
[WhiteElo "2481"]
[BlackElo "2327"]
[WhiteTeam "UKR"]
[BlackTeam "USA"]
[WhiteClock "0:00:09"]
[BlackClock "0:00:31"]

1. e4 {[%clk 0:03:00]}  c6 {[%clk 0:02:59]} 2. Nc3 {[%clk 0:02:59]}  d5 {[%clk 0:03:00]} 3. Nf3 {[%clk 0:02:59]}  dxe4 {[%clk 0:03:01]} 4. Nxe4 {[%clk 0:02:59]}  Nf6 {[%clk 0:03:02]} 5. Qe2 {[%clk 0:02:58]}  Nxe4 {[%clk 0:03:02]} 6. Qxe4 {[%clk 0:02:58]}  Qd5 {[%clk 0:03:02]} 7. Qf4 {[%clk 0:02:58]}  Bf5 {[%clk 0:02:57]} 8. d3 {[%clk 0:02:08]}  e6 {[%clk 0:02:52]} 9. Bd2 {[%clk 0:01:55]}  Nd7 {[%clk 0:02:48]} 10. Nh4 {[%clk 0:01:42]}  Bg6 {[%clk 0:02:47]} 11. Nxg6 {[%clk 0:01:41]}  hxg6 {[%clk 0:02:47]} 12. h3 {[%clk 0:01:40]}  Bd6 {[%clk 0:02:47]} 13. Qa4 {[%clk 0:01:39]}  Qe5+ {[%clk 0:02:45]} 14. Be2 {[%clk 0:01:32]}  Qxb2 {[%clk 0:02:43]} 15. Rd1 {[%clk 0:01:07]}  Nb6 {[%clk 0:02:42]} 16. Qb3 {[%clk 0:01:05]}  Qe5 {[%clk 0:02:38]} 17. f4 {[%clk 0:01:02]}  Qd5 {[%clk 0:02:27]} 18. Bf3 {[%clk 0:00:59]}  Qxb3 {[%clk 0:02:22]} 19. axb3 {[%clk 0:00:59]}  Nd5 {[%clk 0:02:15]} 20. g3 {[%clk 0:00:55]}  Bb4 {[%clk 0:02:13]} 21. c4 {[%clk 0:00:49]}  Ne3 {[%clk 0:01:57]} 22. Rc1 {[%clk 0:00:42]}  Bxd2+ {[%clk 0:01:50]} 23. Kxd2 {[%clk 0:00:39]}  Nf5 {[%clk 0:01:51]} 24. g4 {[%clk 0:00:26]}  Nd4 {[%clk 0:01:50]} 25. Bd1 {[%clk 0:00:25]}  a5 {[%clk 0:01:38]} 26. Ra1 {[%clk 0:00:17]}  Ke7 {[%clk 0:01:28]} 27. Ke3 {[%clk 0:00:15]}  c5 {[%clk 0:01:19]} 28. h4 {[%clk 0:00:14]}  b6 {[%clk 0:01:19]} 29. Rh3 {[%clk 0:00:13]}  Rad8 {[%clk 0:01:14]} 30. Rh2 {[%clk 0:00:13]}  Nc6 {[%clk 0:01:15]} 31. Rh3 {[%clk 0:00:12]}  Nb4 {[%clk 0:01:14]} 32. Be2 {[%clk 0:00:12]}  Rd4 {[%clk 0:01:14]} 33. Rd1 {[%clk 0:00:11]}  Rhd8 {[%clk 0:01:11]} 34. Rd2 {[%clk 0:00:11]}  R8d7 {[%clk 0:00:57]} 35. h5 {[%clk 0:00:11]}  gxh5 {[%clk 0:00:57]} 36. gxh5 {[%clk 0:00:11]}  Kf6 {[%clk 0:00:56]} 37. h6 {[%clk 0:00:11]}  gxh6 {[%clk 0:00:54]} 38. Rxh6+ {[%clk 0:00:11]}  Ke7 {[%clk 0:00:53]} 39. Rh8 {[%clk 0:00:11]}  Rd8 {[%clk 0:00:52]} 40. Rxd8 {[%clk 0:00:10]}  Rxd8 {[%clk 0:00:52]} 41. Bf3 {[%clk 0:00:10]}  Kf6 {[%clk 0:00:49]} 42. Be4 {[%clk 0:00:10]}  Ke7 {[%clk 0:00:48]} 43. f5 {[%clk 0:00:09]}  Kf6 {[%clk 0:00:45]} 44. fxe6 {[%clk 0:00:09]}  Kxe6 {[%clk 0:00:46]} 45. Rf2 {[%clk 0:00:09]}  f6 {[%clk 0:00:44]} 46. Bf5+ {[%clk 0:00:09]}  Ke5 {[%clk 0:00:44]} 47. Be4 {[%clk 0:00:09]}  Ke6 {[%clk 0:00:42]} 48. Bf5+ {[%clk 0:00:09]}  Ke7 {[%clk 0:00:41]} 49. Be4 {[%clk 0:00:09]}  Rd6 {[%clk 0:00:41]} 50. Rg2 {[%clk 0:00:09]}  Kf7 {[%clk 0:00:40]} 51. Bg6+ {[%clk 0:00:08]}  Ke7 {[%clk 0:00:40]} 52. Be4 {[%clk 0:00:09]}  Kf7 {[%clk 0:00:32]} 53. Bg6+ {[%clk 0:00:09]}  Ke7 {[%clk 0:00:31]} 54. Be4 {[%clk 0:00:09]} 1/2-1/2

[Event "January 2 Late 2024"]
[Site "https://www.chess.com"]
[Date "2024.01.02"]
[Round "9"]
[White "Gonzalez Zharikov, Andrey"]
[Black "Baules Rodriguez, Jorge Luis"]
[Result "0-1"]
[Board "111"]
[TimeControl "180+1"]
[WhiteFideId "5145287"]
[BlackFideId "6600247"]
[WhiteElo "2309"]
[BlackElo "2432"]
[WhiteTeam "MEX"]
[BlackTeam "PAN"]
[WhiteClock "0:00:14"]
[BlackClock "0:00:56"]

1. e4 {[%clk 0:03:00]}  c5 {[%clk 0:02:57]} 2. Nf3 {[%clk 0:03:00]}  d6 {[%clk 0:02:58]} 3. d4 {[%clk 0:03:00]}  cxd4 {[%clk 0:02:58]} 4. Qxd4 {[%clk 0:03:00]}  Nc6 {[%clk 0:02:58]} 5. Bb5 {[%clk 0:03:00]}  Bd7 {[%clk 0:02:58]} 6. Bxc6 {[%clk 0:03:00]}  Bxc6 {[%clk 0:02:59]} 7. Nc3 {[%clk 0:03:00]}  Nf6 {[%clk 0:02:58]} 8. Bg5 {[%clk 0:03:00]}  e6 {[%clk 0:02:59]} 9. O-O-O {[%clk 0:02:59]}  Be7 {[%clk 0:02:59]} 10. Rhe1 {[%clk 0:02:59]}  O-O {[%clk 0:02:58]} 11. Qd2 {[%clk 0:02:59]}  Rc8 {[%clk 0:02:50]} 12. Nd4 {[%clk 0:02:55]}  Re8 {[%clk 0:02:46]} 13. f3 {[%clk 0:02:50]}  a6 {[%clk 0:02:42]} 14. g4 {[%clk 0:02:43]}  b5 {[%clk 0:02:41]} 15. Nxc6 {[%clk 0:02:44]}  Rxc6 {[%clk 0:02:41]} 16. e5 {[%clk 0:02:21]}  dxe5 {[%clk 0:02:37]} 17. Qxd8 {[%clk 0:02:10]}  Rxd8 {[%clk 0:02:35]} 18. Rxd8+ {[%clk 0:02:09]}  Bxd8 {[%clk 0:02:35]} 19. Bxf6 {[%clk 0:01:36]}  gxf6 {[%clk 0:02:23]} 20. Rd1 {[%clk 0:01:36]}  Bb6 {[%clk 0:02:08]} 21. Rd7 {[%clk 0:01:34]}  f5 {[%clk 0:02:03]} 22. Kd2 {[%clk 0:01:30]}  Bd4 {[%clk 0:01:59]} 23. Nd1 {[%clk 0:01:19]}  Kg7 {[%clk 0:01:46]} 24. c3 {[%clk 0:01:19]}  Bc5 {[%clk 0:01:45]} 25. b4 {[%clk 0:01:02]}  Bb6 {[%clk 0:01:37]} 26. Nb2 {[%clk 0:01:00]}  Bc7 {[%clk 0:01:28]} 27. a4 {[%clk 0:00:55]}  e4 {[%clk 0:01:28]} 28. axb5 {[%clk 0:00:45]}  axb5 {[%clk 0:01:27]} 29. gxf5 {[%clk 0:00:45]}  exf5 {[%clk 0:01:24]} 30. fxe4 {[%clk 0:00:44]}  fxe4 {[%clk 0:01:25]} 31. Rd5 {[%clk 0:00:44]}  Bxh2 {[%clk 0:01:19]} 32. Rxb5 {[%clk 0:00:44]}  Kg6 {[%clk 0:01:17]} 33. c4 {[%clk 0:00:40]}  f5 {[%clk 0:01:10]} 34. c5 {[%clk 0:00:30]}  Rc8 {[%clk 0:01:07]} 35. Rb6+ {[%clk 0:00:29]}  Kg5 {[%clk 0:01:06]} 36. c6 {[%clk 0:00:25]}  f4 {[%clk 0:01:02]} 37. b5 {[%clk 0:00:25]}  f3 {[%clk 0:01:02]} 38. Nd1 {[%clk 0:00:19]}  Bf4+ {[%clk 0:00:58]} 39. Ke1 {[%clk 0:00:19]}  e3 {[%clk 0:00:56]} 40. Rb7 {[%clk 0:00:14]}  Bg3+ {[%clk 0:00:56]} 0-1

[Event "January 2 Late 2024"]
[Site "https://www.chess.com"]
[Date "2024.01.02"]
[Round "9"]
[White "Vifleemskaia, Svetlana"]
[Black "Gabdushev, Ruslan"]
[Result "0-1"]
[Board "112"]
[TimeControl "180+1"]
[WhiteFideId "4129490"]
[BlackFideId "4137833"]
[WhiteElo "2253"]
[BlackElo "2431"]
[WhiteTeam "RUS"]
[BlackTeam "RUS"]
[WhiteClock "0:00:00"]
[BlackClock "0:00:43"]

1. d4 {[%clk 0:02:55]}  c6 {[%clk 0:02:57]} 2. c4 {[%clk 0:02:55]}  Qa5+ {[%clk 0:02:57]} 3. Nc3 {[%clk 0:02:53]}  g5 {[%clk 0:02:56]} 4. e4 {[%clk 0:02:50]}  Bg7 {[%clk 0:02:56]} 5. d5 {[%clk 0:02:50]}  Bxc3+ {[%clk 0:02:40]} 6. bxc3 {[%clk 0:02:49]}  Qxc3+ {[%clk 0:02:41]} 7. Bd2 {[%clk 0:02:47]}  Qg7 {[%clk 0:02:37]} 8. Rc1 {[%clk 0:02:42]}  d6 {[%clk 0:02:29]} 9. h4 {[%clk 0:02:16]}  g4 {[%clk 0:02:21]} 10. h5 {[%clk 0:02:02]}  Nf6 {[%clk 0:02:16]} 11. Bd3 {[%clk 0:01:48]}  Nbd7 {[%clk 0:02:15]} 12. Qe2 {[%clk 0:01:27]}  Ne5 {[%clk 0:02:05]} 13. Bb1 {[%clk 0:01:25]}  c5 {[%clk 0:01:59]} 14. Bc3 {[%clk 0:01:17]}  Qg5 {[%clk 0:01:55]} 15. Bd2 {[%clk 0:01:14]}  Qg7 {[%clk 0:01:52]} 16. Bc3 {[%clk 0:01:08]}  Bd7 {[%clk 0:01:48]} 17. Qd2 {[%clk 0:00:53]}  h6 {[%clk 0:01:40]} 18. Bxe5 {[%clk 0:00:44]}  dxe5 {[%clk 0:01:38]} 19. Qb2 {[%clk 0:00:43]}  Qg5 {[%clk 0:01:33]} 20. Ne2 {[%clk 0:00:40]}  b6 {[%clk 0:01:31]} 21. Ng3 {[%clk 0:00:31]}  Kf8 {[%clk 0:01:23]} 22. O-O {[%clk 0:00:24]}  Nxh5 {[%clk 0:01:21]} 23. Nxh5 {[%clk 0:00:21]}  Qxh5 {[%clk 0:01:21]} 24. f4 {[%clk 0:00:20]}  gxf3 {[%clk 0:01:17]} 25. Rxf3 {[%clk 0:00:18]}  Rg8 {[%clk 0:01:15]} 26. Rcf1 {[%clk 0:00:18]}  Rg7 {[%clk 0:01:14]} 27. Bd3 {[%clk 0:00:12]}  Kg8 {[%clk 0:01:11]} 28. Qf2 {[%clk 0:00:12]}  f6 {[%clk 0:01:07]} 29. Rg3 {[%clk 0:00:10]}  Rxg3 {[%clk 0:01:03]} 30. Qxg3+ {[%clk 0:00:11]}  Kh7 {[%clk 0:01:01]} 31. Qf2 {[%clk 0:00:07]}  Rg8 {[%clk 0:00:57]} 32. Be2 {[%clk 0:00:07]}  Bg4 {[%clk 0:00:54]} 33. Bxg4 {[%clk 0:00:07]}  Qxg4 {[%clk 0:00:54]} 34. Qf3 {[%clk 0:00:07]}  h5 {[%clk 0:00:49]} 35. Kf2 {[%clk 0:00:03]}  Qxf3+ {[%clk 0:00:44]} 36. Kxf3 {[%clk 0:00:00]}  Kh6 {[%clk 0:00:43]} 0-1